[Event "Late-Titled-Tuesday-Blitz-August-29-2023"]
[Site "Chess.com"]
[Date "2023.08.29"]
[Round "2"]
[White "vi_pranav"]
[Black "IMRosen"]
[Result "1-0"]
[WhiteElo "2957"]
[BlackElo "2615"]
[TimeControl "180+1"]
[EndTime "14:16:43 PDT"]
[Termination "vi_pranav won on time"]

1. e4 {[%clk 0:03:00.9]} 1... c5 {[%clk 0:02:59.1]} 2. Nf3 {[%clk 0:03:00.6]}
2... Nc6 {[%clk 0:02:59.7]} 3. Bb5 {[%clk 0:03:00.6]} 3... e6 {[%clk 0:02:59.8]}
4. Bxc6 {[%clk 0:03:00.6]} 4... bxc6 {[%clk 0:03:00]} 5. d3 {[%clk 0:03:01.1]}
5... Ne7 {[%clk 0:03:00.1]} 6. O-O {[%clk 0:03:01.6]} 6... Ng6 {[%clk
0:02:59.9]} 7. Ng5 {[%clk 0:03:01.6]} 7... f6 {[%clk 0:02:40.2]} 8. Nh3 {[%clk
0:03:00.6]} 8... e5 {[%clk 0:02:40.7]} 9. f4 {[%clk 0:02:59.7]} 9... d6 {[%clk
0:02:35.9]} 10. f5 {[%clk 0:02:58.9]} 10... Ne7 {[%clk 0:02:35.9]} 11. Qh5+
{[%clk 0:02:58.1]} 11... Kd7 {[%clk 0:02:36.3]} 12. a4 {[%clk 0:02:46.2]} 12...
Qe8 {[%clk 0:02:35.8]} 13. Qe2 {[%clk 0:02:43.2]} 13... Ba6 {[%clk 0:02:29.5]}
14. Nd2 {[%clk 0:02:40.5]} 14... Qf7 {[%clk 0:02:29.3]} 15. Nc4 {[%clk
0:02:40.3]} 15... g6 {[%clk 0:02:11.1]} 16. fxg6 {[%clk 0:02:23.3]} 16... hxg6
{[%clk 0:02:07.5]} 17. Ng5 {[%clk 0:02:12.4]} 17... Qg7 {[%clk 0:01:44.4]} 18.
Qg4+ {[%clk 0:02:10.2]} 18... f5 {[%clk 0:01:44.7]} 19. exf5 {[%clk 0:02:09.1]}
19... gxf5 {[%clk 0:01:39.9]} 20. Rxf5 {[%clk 0:02:08.7]} 20... Nxf5 {[%clk
0:00:55.7]} 21. Qxf5+ {[%clk 0:02:07.5]} 21... Ke8 {[%clk 0:00:34.2]} 22. Qe6+
{[%clk 0:02:03.2]} 22... Kd8 {[%clk 0:00:25.5]} 23. Nf7+ {[%clk 0:01:46.8]}
23... Kc7 {[%clk 0:00:23.9]} 24. Nxh8 {[%clk 0:01:47]} 24... Bxc4 {[%clk
0:00:23.5]} 25. dxc4 {[%clk 0:01:45.9]} 25... Qxh8 {[%clk 0:00:22.8]} 26. Qf7+
{[%clk 0:01:45.8]} 26... Kc8 {[%clk 0:00:12.2]} 27. Be3 {[%clk 0:01:42.5]} 27...
Qg7 {[%clk 0:00:11.5]} 28. Rf1 {[%clk 0:01:38.9]} 28... Qxf7 {[%clk 0:00:02.5]}
29. Rxf7 {[%clk 0:01:39.8]} 29... Be7 {[%clk 0:00:02.1]} 30. Rxe7 {[%clk
0:01:39.2]} 30... Rb8 {[%clk 0:00:02.3]} 31. Re8+ {[%clk 0:01:39.4]} 31... Kb7
{[%clk 0:00:02.7]} 32. Rxb8+ {[%clk 0:01:40.3]} 32... Kxb8 {[%clk 0:00:02.4]}
33. h4 {[%clk 0:01:40.5]} 33... d5 {[%clk 0:00:02]} 34. h5 {[%clk 0:01:41.4]}
34... d4 {[%clk 0:00:01.9]} 35. h6 {[%clk 0:01:41.7]} 35... d3 {[%clk
0:00:01.2]} 36. c3 {[%clk 0:01:41]} 1-0

[Event "Late-Titled-Tuesday-Blitz-August-29-2023"]
[Site "Chess.com"]
[Date "2023.08.29"]
[Round "2"]
[White "Andreikka"]
[Black "Ajedrez_con_German"]
[Result "1-0"]
[WhiteElo "3036"]
[BlackElo "2657"]
[TimeControl "180+1"]
[EndTime "14:16:45 PDT"]
[Termination "Andreikka won by resignation"]

1. c4 {[%clk 0:02:59.5]} 1... e6 {[%clk 0:03:00.3]} 2. Nc3 {[%clk 0:02:58.6]}
2... d5 {[%clk 0:03:00.2]} 3. d4 {[%clk 0:02:59.1]} 3... Nf6 {[%clk 0:03:00.3]}
4. cxd5 {[%clk 0:02:58.5]} 4... Nxd5 {[%clk 0:03:01.2]} 5. e4 {[%clk 0:02:57.8]}
5... Nxc3 {[%clk 0:03:01]} 6. bxc3 {[%clk 0:02:58.7]} 6... c5 {[%clk 0:03:01.8]}
7. Nf3 {[%clk 0:02:57]} 7... cxd4 {[%clk 0:03:01.8]} 8. cxd4 {[%clk 0:02:57.9]}
8... Bb4+ {[%clk 0:03:02.3]} 9. Bd2 {[%clk 0:02:58.5]} 9... Bxd2+ {[%clk
0:03:02.9]} 10. Qxd2 {[%clk 0:02:59.4]} 10... O-O {[%clk 0:03:02.9]} 11. Bc4
{[%clk 0:02:59.8]} 11... Nd7 {[%clk 0:02:59.9]} 12. O-O {[%clk 0:02:58.5]} 12...
b6 {[%clk 0:03:00.5]} 13. Rfe1 {[%clk 0:02:58.3]} 13... Bb7 {[%clk 0:03:00]} 14.
Rad1 {[%clk 0:02:58.7]} 14... Rc8 {[%clk 0:02:57.5]} 15. Bb3 {[%clk 0:02:59]}
15... h6 {[%clk 0:02:56.4]} 16. h3 {[%clk 0:02:58.6]} 16... Qf6 {[%clk
0:02:50.1]} 17. Re3 {[%clk 0:02:57.3]} 17... e5 {[%clk 0:02:40.1]} 18. d5 {[%clk
0:02:49.8]} 18... Nc5 {[%clk 0:02:27.4]} 19. Bc2 {[%clk 0:02:44.3]} 19... Rfd8
{[%clk 0:02:25.3]} 20. Qb4 {[%clk 0:02:35.4]} 20... a5 {[%clk 0:02:21.1]} 21.
Qb2 {[%clk 0:02:34.5]} 21... Re8 {[%clk 0:02:02.4]} 22. Rb1 {[%clk 0:02:13.2]}
22... Nd7 {[%clk 0:01:22.8]} 23. Ba4 {[%clk 0:02:12.5]} 23... Qd6 {[%clk
0:01:22]} 24. Bxd7 {[%clk 0:02:10.4]} 24... Qxd7 {[%clk 0:01:22.4]} 25. Qxb6
{[%clk 0:01:46.9]} 25... Ba8 {[%clk 0:01:06]} 26. Nh4 {[%clk 0:01:39.8]} 26...
Qa4 {[%clk 0:00:38.7]} 27. Nf5 {[%clk 0:01:35.3]} 27... Rb8 {[%clk 0:00:17]} 28.
Qxb8 {[%clk 0:01:31.7]} 28... Rxb8 {[%clk 0:00:17.9]} 29. Rxb8+ {[%clk
0:01:31.8]} 29... Kh7 {[%clk 0:00:18.8]} 30. Rxa8 {[%clk 0:01:31]} 30... Qxa2
{[%clk 0:00:19.1]} 31. d6 {[%clk 0:01:24.7]} 1-0

[Event "Late-Titled-Tuesday-Blitz-August-29-2023"]
[Site "Chess.com"]
[Date "2023.08.29"]
[Round "2"]
[White "STARMATEcc"]
[Black "Levanzovsky"]
[Result "0-1"]
[WhiteElo "2538"]
[BlackElo "2401"]
[TimeControl "180+1"]
[EndTime "14:16:47 PDT"]
[Termination "Levanzovsky won by resignation"]

1. e4 {[%clk 0:03:00]} 1... c6 {[%clk 0:02:59.4]} 2. d4 {[%clk 0:03:00.1]} 2...
d5 {[%clk 0:03:00.3]} 3. Nc3 {[%clk 0:03:00.8]} 3... dxe4 {[%clk 0:03:00.3]} 4.
Nxe4 {[%clk 0:03:01.7]} 4... Nf6 {[%clk 0:03:00.9]} 5. Nxf6+ {[%clk 0:03:02.3]}
5... exf6 {[%clk 0:03:01.8]} 6. c3 {[%clk 0:03:03.1]} 6... Bd6 {[%clk
0:03:02.5]} 7. Bd3 {[%clk 0:03:04]} 7... O-O {[%clk 0:03:03]} 8. Qc2 {[%clk
0:03:04.9]} 8... Re8+ {[%clk 0:03:03.5]} 9. Ne2 {[%clk 0:03:05.8]} 9... h5
{[%clk 0:03:04.1]} 10. Be3 {[%clk 0:03:06.5]} 10... Nd7 {[%clk 0:02:59.2]} 11.
Ng3 {[%clk 0:03:07]} 11... Nb6 {[%clk 0:02:56.1]} 12. O-O {[%clk 0:03:03.4]}
12... h4 {[%clk 0:02:47.5]} 13. Ne4 {[%clk 0:03:03.7]} 13... Nd5 {[%clk
0:02:37]} 14. Nxd6 {[%clk 0:02:55.9]} 14... Qxd6 {[%clk 0:02:37.9]} 15. Bd2
{[%clk 0:02:52.6]} 15... h3 {[%clk 0:02:24.7]} 16. g3 {[%clk 0:02:52]} 16... Bd7
{[%clk 0:02:14.8]} 17. Rae1 {[%clk 0:02:51.7]} 17... a5 {[%clk 0:02:13.1]} 18.
a3 {[%clk 0:02:50.7]} 18... b5 {[%clk 0:02:09.9]} 19. Bh7+ {[%clk 0:02:33]}
19... Kh8 {[%clk 0:02:08.3]} 20. Bf5 {[%clk 0:02:33.7]} 20... g6 {[%clk
0:02:04.4]} 21. Bxd7 {[%clk 0:02:24]} 21... Qxd7 {[%clk 0:02:05.3]} 22. Re4
{[%clk 0:02:22]} 22... Rxe4 {[%clk 0:01:54.4]} 23. Qxe4 {[%clk 0:02:22.9]} 23...
Re8 {[%clk 0:01:54.4]} 24. Qh4+ {[%clk 0:02:23.4]} 24... Kg8 {[%clk 0:01:55]}
25. Re1 {[%clk 0:01:59.7]} 25... Rxe1+ {[%clk 0:01:52.2]} 26. Bxe1 {[%clk
0:02:00.6]} 26... Qf5 {[%clk 0:01:52.5]} 27. g4 {[%clk 0:01:47.3]} 27... Qe4
{[%clk 0:01:49.3]} 28. f3 {[%clk 0:01:38]} 28... Qxf3 {[%clk 0:01:37.2]} 29. Qg3
{[%clk 0:01:37.8]} 29... Qe2 {[%clk 0:01:34.5]} 30. Bf2 {[%clk 0:01:00]} 30...
Qd1+ {[%clk 0:01:26.5]} 31. Be1 {[%clk 0:00:59.5]} 31... Nf4 {[%clk 0:01:23.6]}
32. Qxf4 {[%clk 0:00:21.1]} 32... Qxe1+ {[%clk 0:01:20.7]} 33. Qf1 {[%clk
0:00:22]} 33... Qe3+ {[%clk 0:01:21.1]} 34. Kh1 {[%clk 0:00:22.2]} 34... Qe4+
{[%clk 0:01:20.3]} 35. Qg2 {[%clk 0:00:21.7]} 0-1

[Event "Late-Titled-Tuesday-Blitz-August-29-2023"]
[Site "Chess.com"]
[Date "2023.08.29"]
[Round "2"]
[White "sofaceindisguise"]
[Black "geordie_derraugh"]
[Result "1-0"]
[WhiteElo "2680"]
[BlackElo "2406"]
[TimeControl "180+1"]
[EndTime "14:16:51 PDT"]
[Termination "sofaceindisguise won by resignation"]

1. e4 {[%clk 0:03:00.9]} 1... e5 {[%clk 0:02:57.8]} 2. Nf3 {[%clk 0:02:57.3]}
2... Nc6 {[%clk 0:02:57.9]} 3. Bb5 {[%clk 0:02:57.2]} 3... a6 {[%clk 0:02:58.2]}
4. Ba4 {[%clk 0:02:57.1]} 4... Nf6 {[%clk 0:02:58.1]} 5. O-O {[%clk 0:02:57.3]}
5... Be7 {[%clk 0:02:58.3]} 6. d4 {[%clk 0:02:56.6]} 6... exd4 {[%clk
0:02:56.1]} 7. e5 {[%clk 0:02:50.1]} 7... Nd5 {[%clk 0:02:54]} 8. Nxd4 {[%clk
0:02:44.6]} 8... Nb6 {[%clk 0:02:50.2]} 9. Bb3 {[%clk 0:02:41.1]} 9... Nxd4
{[%clk 0:02:46.9]} 10. Qxd4 {[%clk 0:02:41.1]} 10... O-O {[%clk 0:02:46.9]} 11.
Bf4 {[%clk 0:02:36.6]} 11... Bg5 {[%clk 0:02:04.9]} 12. Bg3 {[%clk 0:02:35.8]}
12... Qe7 {[%clk 0:02:04.2]} 13. Nc3 {[%clk 0:02:30.7]} 13... c5 {[%clk
0:01:56]} 14. Qd3 {[%clk 0:02:28.2]} 14... Kh8 {[%clk 0:01:47]} 15. Rfe1 {[%clk
0:02:26.3]} 15... h6 {[%clk 0:01:29.3]} 16. Rad1 {[%clk 0:02:24.4]} 16... Bh4
{[%clk 0:01:27.9]} 17. Nd5 {[%clk 0:02:16]} 17... Nxd5 {[%clk 0:01:27.9]} 18.
Bxd5 {[%clk 0:02:16.4]} 18... Bxg3 {[%clk 0:01:27.6]} 19. hxg3 {[%clk
0:02:16.6]} 19... Rb8 {[%clk 0:01:28]} 20. f4 {[%clk 0:02:06.4]} 20... b5 {[%clk
0:01:28]} 21. f5 {[%clk 0:02:06.6]} 21... Qg5 {[%clk 0:01:27.4]} 22. Qe3 {[%clk
0:02:03.4]} 22... Qxf5 {[%clk 0:01:20.6]} 23. Qxc5 {[%clk 0:02:03.2]} 23... d6
{[%clk 0:01:06.9]} 24. Qxd6 {[%clk 0:01:56.7]} 24... Be6 {[%clk 0:01:04.4]} 25.
Rf1 {[%clk 0:01:56.6]} 25... Rfd8 {[%clk 0:00:43]} 26. Rxf5 {[%clk 0:01:51.8]}
26... Rxd6 {[%clk 0:00:43.1]} 27. exd6 {[%clk 0:01:51]} 27... Bxf5 {[%clk
0:00:43.2]} 28. Bxf7 {[%clk 0:01:50]} 28... Bxc2 {[%clk 0:00:41.7]} 29. Rc1
{[%clk 0:01:50.5]} 29... Bf5 {[%clk 0:00:41.1]} 30. Rc6 {[%clk 0:01:47.7]} 30...
a5 {[%clk 0:00:39.9]} 31. Bd5 {[%clk 0:01:39.2]} 31... Rd8 {[%clk 0:00:38.4]}
32. Kf2 {[%clk 0:01:37.8]} 32... Bh7 {[%clk 0:00:23.6]} 33. Ke3 {[%clk
0:01:35.5]} 33... Bg8 {[%clk 0:00:20]} 34. Kd4 {[%clk 0:01:33]} 34... Bxd5
{[%clk 0:00:16]} 35. Kxd5 {[%clk 0:01:32.4]} 35... Kg8 {[%clk 0:00:16.9]} 36.
Rc7 {[%clk 0:01:30.3]} 36... Rf8 {[%clk 0:00:14]} 37. d7 {[%clk 0:01:29.9]} 1-0

[Event "Late-Titled-Tuesday-Blitz-August-29-2023"]
[Site "Chess.com"]
[Date "2023.08.29"]
[Round "2"]
[White "Murtazin_Ruslan"]
[Black "ilya2700"]
[Result "0-1"]
[WhiteElo "2390"]
[BlackElo "2092"]
[TimeControl "180+1"]
[EndTime "14:16:55 PDT"]
[Termination "ilya2700 won by resignation"]

1. e4 {[%clk 0:03:00.4]} 1... c5 {[%clk 0:02:58.4]} 2. Nf3 {[%clk 0:03:00.1]}
2... e6 {[%clk 0:02:55]} 3. b3 {[%clk 0:02:59.9]} 3... Nf6 {[%clk 0:02:52.8]} 4.
e5 {[%clk 0:02:58.7]} 4... Nd5 {[%clk 0:02:53.2]} 5. Bb2 {[%clk 0:02:59]} 5...
b6 {[%clk 0:02:52.7]} 6. g3 {[%clk 0:02:58.9]} 6... Bb7 {[%clk 0:02:53.1]} 7.
Bg2 {[%clk 0:02:59.5]} 7... Nc6 {[%clk 0:02:52.4]} 8. O-O {[%clk 0:02:59.5]}
8... Be7 {[%clk 0:02:51.1]} 9. d3 {[%clk 0:02:57.8]} 9... O-O {[%clk 0:02:50.9]}
10. Nbd2 {[%clk 0:02:58.2]} 10... f5 {[%clk 0:02:46.5]} 11. Nc4 {[%clk
0:02:55.3]} 11... f4 {[%clk 0:02:42.4]} 12. a4 {[%clk 0:02:52.3]} 12... Qc7
{[%clk 0:02:35.5]} 13. Qe2 {[%clk 0:02:49.9]} 13... g5 {[%clk 0:02:31.2]} 14.
Nxg5 {[%clk 0:02:41.9]} 14... Bxg5 {[%clk 0:02:27.5]} 15. Qg4 {[%clk 0:02:41.5]}
15... Rf5 {[%clk 0:02:24.4]} 16. Nd6 {[%clk 0:02:28.2]} 16... Nxe5 {[%clk
0:02:11.4]} 17. Bxe5 {[%clk 0:02:20.8]} 17... Rxe5 {[%clk 0:02:11.8]} 18. Nc4
{[%clk 0:02:10.4]} 18... Nf6 {[%clk 0:02:01.6]} 19. Qh3 {[%clk 0:02:10.1]} 19...
f3 {[%clk 0:01:58.5]} 20. Bxf3 {[%clk 0:01:49.6]} 20... Bxf3 {[%clk 0:01:55.8]}
21. Nxe5 {[%clk 0:01:50.5]} 21... Qxe5 {[%clk 0:01:56]} 22. Rfe1 {[%clk
0:01:50.9]} 22... Qd4 {[%clk 0:01:51.9]} 23. Qf1 {[%clk 0:01:47.8]} 23... Kf7
{[%clk 0:01:41.8]} 24. a5 {[%clk 0:01:44.8]} 24... Rg8 {[%clk 0:01:40.9]} 25.
axb6 {[%clk 0:01:44.5]} 25... axb6 {[%clk 0:01:40.7]} 26. Ra4 {[%clk 0:01:43.2]}
26... Qc3 {[%clk 0:01:36]} 27. Rc4 {[%clk 0:01:42.3]} 27... Qd2 {[%clk
0:01:34.6]} 28. Ra1 {[%clk 0:01:34]} 28... h5 {[%clk 0:01:26.8]} 29. Qe1 {[%clk
0:01:19]} 29... Qxe1+ {[%clk 0:01:16.9]} 30. Rxe1 {[%clk 0:01:19.9]} 30... Ra8
{[%clk 0:01:12.4]} 31. Ra4 {[%clk 0:01:18.2]} 31... Rxa4 {[%clk 0:01:03.1]} 32.
bxa4 {[%clk 0:01:19.1]} 32... Bd2 {[%clk 0:01:00.8]} 33. Rb1 {[%clk 0:01:18.6]}
33... Bb4 {[%clk 0:00:58.4]} 34. c3 {[%clk 0:01:18]} 34... Ba5 {[%clk
0:00:57.5]} 35. d4 {[%clk 0:01:12]} 35... cxd4 {[%clk 0:00:57]} 36. cxd4 {[%clk
0:01:12.9]} 36... Ne4 {[%clk 0:00:50.7]} 37. Rb3 {[%clk 0:01:09.8]} 37... Nd2
{[%clk 0:00:50.5]} 38. Rb5 {[%clk 0:01:05]} 38... d5 {[%clk 0:00:47]} 39. h4
{[%clk 0:01:02.3]} 39... Kf6 {[%clk 0:00:46.1]} 0-1

[Event "Late-Titled-Tuesday-Blitz-August-29-2023"]
[Site "Chess.com"]
[Date "2023.08.29"]
[Round "2"]
[White "ritanovikova"]
[Black "stasOR4ik"]
[Result "0-1"]
[WhiteElo "2144"]
[BlackElo "2448"]
[TimeControl "180+1"]
[EndTime "14:16:59 PDT"]
[Termination "stasOR4ik won by resignation"]

1. d4 {[%clk 0:03:00]} 1... d5 {[%clk 0:02:59.7]} 2. Bf4 {[%clk 0:02:59.1]} 2...
Nf6 {[%clk 0:02:56.5]} 3. c3 {[%clk 0:02:58]} 3... c5 {[%clk 0:02:55]} 4. Nd2
{[%clk 0:02:56]} 4... Nc6 {[%clk 0:02:54.9]} 5. e3 {[%clk 0:02:55.7]} 5... Bf5
{[%clk 0:02:46.7]} 6. Ngf3 {[%clk 0:02:53]} 6... a6 {[%clk 0:02:43.4]} 7. Ne5
{[%clk 0:02:44.4]} 7... Nxe5 {[%clk 0:02:41.6]} 8. dxe5 {[%clk 0:02:39.5]} 8...
Nd7 {[%clk 0:02:41.4]} 9. Nf3 {[%clk 0:02:36.4]} 9... e6 {[%clk 0:02:41.5]} 10.
Bd3 {[%clk 0:02:35.4]} 10... Bxd3 {[%clk 0:02:39]} 11. Qxd3 {[%clk 0:02:35.5]}
11... Qb6 {[%clk 0:02:36.9]} 12. Qc2 {[%clk 0:02:31.9]} 12... Be7 {[%clk
0:02:36.1]} 13. O-O {[%clk 0:02:31.6]} 13... O-O {[%clk 0:02:33.5]} 14. Rab1
{[%clk 0:02:26.4]} 14... Rac8 {[%clk 0:02:32.2]} 15. Rfe1 {[%clk 0:02:13.1]}
15... Rfd8 {[%clk 0:02:31.3]} 16. h4 {[%clk 0:02:05.3]} 16... Nf8 {[%clk
0:02:30.7]} 17. h5 {[%clk 0:02:03.5]} 17... d4 {[%clk 0:02:27]} 18. Qe4 {[%clk
0:01:44.8]} 18... d3 {[%clk 0:02:13.7]} 19. Qc4 {[%clk 0:01:34]} 19... Qa5
{[%clk 0:02:06.7]} 20. Red1 {[%clk 0:01:26.8]} 20... b5 {[%clk 0:02:05.8]} 21.
Qe4 {[%clk 0:01:23.6]} 21... Qxa2 {[%clk 0:01:59.7]} 22. Bg5 {[%clk 0:01:13.8]}
22... Bxg5 {[%clk 0:01:53]} 23. Nxg5 {[%clk 0:01:14]} 23... Qc4 {[%clk
0:01:44.3]} 24. Qb7 {[%clk 0:01:08]} 24... Qg4 {[%clk 0:01:23.9]} 25. Qxf7+
{[%clk 0:01:05.5]} 25... Kh8 {[%clk 0:01:24.1]} 26. Qe7 {[%clk 0:00:52.9]} 26...
Rd7 {[%clk 0:01:15.2]} 27. f3 {[%clk 0:00:39.4]} 27... Qxh5 {[%clk 0:01:09.6]}
28. g4 {[%clk 0:00:31.8]} 28... Qg6 {[%clk 0:01:07.6]} 0-1

[Event "Late-Titled-Tuesday-Blitz-August-29-2023"]
[Site "Chess.com"]
[Date "2023.08.29"]
[Round "2"]
[White "kingofthenil"]
[Black "GOGIEFF"]
[Result "0-1"]
[WhiteElo "2653"]
[BlackElo "3034"]
[TimeControl "180+1"]
[EndTime "14:17:00 PDT"]
[Termination "GOGIEFF won by resignation"]

1. Nf3 {[%clk 0:03:00]} 1... Nf6 {[%clk 0:02:59.6]} 2. g3 {[%clk 0:02:59.1]}
2... g6 {[%clk 0:02:58.9]} 3. Bg2 {[%clk 0:02:59]} 3... Bg7 {[%clk 0:02:59.3]}
4. O-O {[%clk 0:02:59.3]} 4... O-O {[%clk 0:02:59.8]} 5. c4 {[%clk 0:02:59.2]}
5... Nc6 {[%clk 0:02:59.8]} 6. d4 {[%clk 0:02:56.3]} 6... a6 {[%clk 0:03:00]} 7.
Nc3 {[%clk 0:02:54.9]} 7... Rb8 {[%clk 0:03:00]} 8. d5 {[%clk 0:02:51.5]} 8...
Na5 {[%clk 0:02:59.5]} 9. b3 {[%clk 0:02:44.8]} 9... b5 {[%clk 0:02:56.6]} 10.
cxb5 {[%clk 0:02:38.6]} 10... axb5 {[%clk 0:02:57.5]} 11. Bf4 {[%clk 0:02:36.2]}
11... b4 {[%clk 0:02:47.4]} 12. Na4 {[%clk 0:02:35]} 12... Bb7 {[%clk
0:02:46.6]} 13. Ne1 {[%clk 0:01:54.9]} 13... Nh5 {[%clk 0:02:45]} 14. Bd2 {[%clk
0:01:52.4]} 14... Bxa1 {[%clk 0:02:39.4]} 15. Qxa1 {[%clk 0:01:53.3]} 15... c6
{[%clk 0:02:35.4]} 16. e4 {[%clk 0:01:36.3]} 16... Ba6 {[%clk 0:02:33.5]} 17.
Bh6 {[%clk 0:01:27.7]} 17... Bxf1 {[%clk 0:02:32.1]} 18. Bxf1 {[%clk 0:01:16.9]}
18... cxd5 {[%clk 0:02:29.9]} 19. exd5 {[%clk 0:01:06.3]} 19... Qc7 {[%clk
0:02:28.7]} 20. Nd3 {[%clk 0:01:03.5]} 20... Rfc8 {[%clk 0:02:17.1]} 21. Nac5
{[%clk 0:00:43.9]} 21... Qd6 {[%clk 0:01:54.2]} 22. g4 {[%clk 0:00:35.8]} 22...
Rxc5 {[%clk 0:01:49.5]} 23. Nxc5 {[%clk 0:00:30.5]} 23... Qxc5 {[%clk
0:01:48.3]} 24. gxh5 {[%clk 0:00:29.9]} 24... Qc3 {[%clk 0:01:47.8]} 25. Qd1
{[%clk 0:00:25.3]} 25... Nb7 {[%clk 0:01:45]} 26. Bg5 {[%clk 0:00:17.5]} 26...
Qe5 {[%clk 0:01:42]} 27. Qd2 {[%clk 0:00:15.1]} 27... Nd6 {[%clk 0:01:41.7]} 28.
hxg6 {[%clk 0:00:13.4]} 28... hxg6 {[%clk 0:01:41.1]} 29. Bf4 {[%clk 0:00:12.6]}
29... Qc3 {[%clk 0:01:39.6]} 30. Qe2 {[%clk 0:00:11]} 30... Qf6 {[%clk
0:01:39.2]} 31. Be5 {[%clk 0:00:10.8]} 31... Qg5+ {[%clk 0:01:39]} 32. Bg3
{[%clk 0:00:04.9]} 32... Rc8 {[%clk 0:01:39.9]} 33. h4 {[%clk 0:00:03.5]} 33...
Qf6 {[%clk 0:01:38.7]} 34. Bh3 {[%clk 0:00:03.4]} 34... Nf5 {[%clk 0:01:37.6]}
35. Kg2 {[%clk 0:00:04.3]} 35... Nxg3 {[%clk 0:01:37.1]} 36. fxg3 {[%clk
0:00:04.4]} 36... Rc3 {[%clk 0:01:35.8]} 37. Bxd7 {[%clk 0:00:04.3]} 37... Qd6
{[%clk 0:01:35.6]} 38. Bc6 {[%clk 0:00:04.4]} 38... Qxg3+ {[%clk 0:01:34.8]} 39.
Kf1 {[%clk 0:00:04.8]} 39... Rc1+ {[%clk 0:01:34.3]} 40. Qd1 {[%clk 0:00:05.7]}
40... Rxd1+ {[%clk 0:01:34.7]} 41. Ke2 {[%clk 0:00:06.6]} 41... Re1+ {[%clk
0:01:34.7]} 0-1

[Event "Late-Titled-Tuesday-Blitz-August-29-2023"]
[Site "Chess.com"]
[Date "2023.08.29"]
[Round "2"]
[White "Beca95"]
[Black "jeetjain"]
[Result "1-0"]
[WhiteElo "2948"]
[BlackElo "2606"]
[TimeControl "180+1"]
[EndTime "14:17:01 PDT"]
[Termination "Beca95 won by resignation"]

1. e4 {[%clk 0:03:00.9]} 1... c6 {[%clk 0:02:59.2]} 2. Nf3 {[%clk 0:02:59.5]}
2... d5 {[%clk 0:02:59]} 3. Nc3 {[%clk 0:03:00.1]} 3... dxe4 {[%clk 0:02:57.2]}
4. Nxe4 {[%clk 0:03:01]} 4... Nf6 {[%clk 0:02:57.7]} 5. Qe2 {[%clk 0:03:01]}
5... Nxe4 {[%clk 0:02:58]} 6. Qxe4 {[%clk 0:03:01.9]} 6... Qd5 {[%clk
0:02:58.1]} 7. Qh4 {[%clk 0:03:00.3]} 7... Bf5 {[%clk 0:02:52.1]} 8. c4 {[%clk
0:02:51.9]} 8... Qe6+ {[%clk 0:02:51.4]} 9. Be2 {[%clk 0:02:50.6]} 9... Bd3
{[%clk 0:02:46.9]} 10. Nd4 {[%clk 0:02:37.2]} 10... Qxc4 {[%clk 0:02:43.1]} 11.
b3 {[%clk 0:02:36.1]} 11... Qa6 {[%clk 0:02:41.8]} 12. Qh3 {[%clk 0:02:34.9]}
12... Nd7 {[%clk 0:01:58.6]} 13. Qxd3 {[%clk 0:02:23.7]} 13... Qb6 {[%clk
0:01:58.6]} 14. Nf3 {[%clk 0:02:17.4]} 14... e5 {[%clk 0:01:48]} 15. Bb2 {[%clk
0:02:14.8]} 15... f6 {[%clk 0:01:40.8]} 16. O-O {[%clk 0:02:12.6]} 16... O-O-O
{[%clk 0:01:40.7]} 17. Qc4 {[%clk 0:02:03.8]} 17... h5 {[%clk 0:01:19.7]} 18.
Rac1 {[%clk 0:01:53.4]} 18... g5 {[%clk 0:01:18.9]} 19. d4 {[%clk 0:01:44.9]}
19... e4 {[%clk 0:01:18.6]} 20. Nd2 {[%clk 0:01:44.8]} 20... Re8 {[%clk
0:01:13]} 21. d5 {[%clk 0:01:41.3]} 21... e3 {[%clk 0:01:02.8]} 22. dxc6 {[%clk
0:01:08.9]} 22... bxc6 {[%clk 0:00:52.9]} 23. Bd4 {[%clk 0:01:05.7]} 23... exf2+
{[%clk 0:00:49]} 24. Rxf2 {[%clk 0:01:02.7]} 24... c5 {[%clk 0:00:49.4]} 25. b4
{[%clk 0:01:02.1]} 25... Ne5 {[%clk 0:00:44.2]} 26. bxc5 {[%clk 0:00:57.1]}
26... Qc6 {[%clk 0:00:32.3]} 27. Qa6+ {[%clk 0:00:56]} 27... Qxa6 {[%clk
0:00:32.2]} 28. Bxa6+ {[%clk 0:00:54.2]} 28... Kc7 {[%clk 0:00:33.1]} 29. Rxf6
{[%clk 0:00:53.5]} 29... Bg7 {[%clk 0:00:32.2]} 30. Bxe5+ {[%clk 0:00:52.7]}
30... Rxe5 {[%clk 0:00:33.1]} 31. Rf7+ {[%clk 0:00:52.5]} 1-0

[Event "Late-Titled-Tuesday-Blitz-August-29-2023"]
[Site "Chess.com"]
[Date "2023.08.29"]
[Round "2"]
[White "MeisterJabo"]
[Black "Mourinho_Jose"]
[Result "0-1"]
[WhiteElo "2310"]
[BlackElo "2499"]
[TimeControl "180+1"]
[EndTime "14:17:02 PDT"]
[Termination "Mourinho_Jose won on time"]

1. Nf3 {[%clk 0:02:54.2]} 1... d5 {[%clk 0:02:59.2]} 2. b3 {[%clk 0:02:54.3]}
2... Bg4 {[%clk 0:02:59.1]} 3. Bb2 {[%clk 0:02:53.8]} 3... Nd7 {[%clk
0:02:59.3]} 4. g3 {[%clk 0:02:53.6]} 4... Bxf3 {[%clk 0:02:58.3]} 5. exf3 {[%clk
0:02:54.5]} 5... e5 {[%clk 0:02:58.6]} 6. Bg2 {[%clk 0:02:54.9]} 6... Ngf6
{[%clk 0:02:58.6]} 7. O-O {[%clk 0:02:55.8]} 7... Bd6 {[%clk 0:02:58.8]} 8. Re1
{[%clk 0:02:54.9]} 8... O-O {[%clk 0:02:58.2]} 9. c4 {[%clk 0:02:53.5]} 9... d4
{[%clk 0:02:50.3]} 10. d3 {[%clk 0:02:48.8]} 10... c5 {[%clk 0:02:47]} 11. Nd2
{[%clk 0:02:48.8]} 11... Re8 {[%clk 0:02:42.1]} 12. Ne4 {[%clk 0:02:39.8]} 12...
Nf8 {[%clk 0:02:41.2]} 13. Bc1 {[%clk 0:02:34.7]} 13... Ng6 {[%clk 0:02:36.9]}
14. a3 {[%clk 0:02:27.4]} 14... Be7 {[%clk 0:02:29.8]} 15. Bd2 {[%clk
0:02:15.9]} 15... Nd7 {[%clk 0:02:26]} 16. Bc1 {[%clk 0:01:49.4]} 16... f5
{[%clk 0:02:21.6]} 17. Nd2 {[%clk 0:01:47.8]} 17... Bg5 {[%clk 0:02:16]} 18. b4
{[%clk 0:01:36]} 18... a5 {[%clk 0:01:58.4]} 19. bxc5 {[%clk 0:01:22.8]} 19...
Nxc5 {[%clk 0:01:56.7]} 20. Nb3 {[%clk 0:01:22.7]} 20... Na4 {[%clk 0:01:46.3]}
21. Bxg5 {[%clk 0:01:06.7]} 21... Qxg5 {[%clk 0:01:47.2]} 22. Qc2 {[%clk
0:00:42.7]} 22... f4 {[%clk 0:01:30.6]} 23. Nxd4 {[%clk 0:00:28.3]} 23... exd4
{[%clk 0:01:30.4]} 24. Qxa4 {[%clk 0:00:27.3]} 24... Ne5 {[%clk 0:01:27.8]} 25.
Qb5 {[%clk 0:00:15.3]} 25... Qf6 {[%clk 0:01:23.3]} 26. Qd5+ {[%clk 0:00:11.2]}
26... Kh8 {[%clk 0:01:22.6]} 27. Qxd4 {[%clk 0:00:11.4]} 27... Nxf3+ {[%clk
0:01:21.4]} 28. Bxf3 {[%clk 0:00:11.9]} 28... Qxd4 {[%clk 0:01:20.8]} 29. Kg2
{[%clk 0:00:12.8]} 29... fxg3 {[%clk 0:01:17.5]} 30. hxg3 {[%clk 0:00:12.8]}
30... Rxe1 {[%clk 0:01:12.9]} 0-1